[Event "Titled Tuesday Blitz August 09 Early 2022"]
[White "Dounis, Alexandros"]
[Black "Gurel, Ediz"]
[WhiteFideId "4213238"]
[BlackFideId "44507356"]
[WhiteElo "2204"]
[BlackElo "1894"]
[Result "0-1"]
[Round "02"]
[TimeControl "180+1"]
[Date "2022.08.09"]
[WhiteClock "0:00:02"]
[BlackClock "0:00:03"]

1. Nf3 {[%clk 0:03:00]}  Nf6 {[%clk 0:02:59]} 2. g3 {[%clk 0:03:01]}  g6 {[%clk 0:02:59]} 3. Bg2 {[%clk 0:03:01]}  Bg7 {[%clk 0:03:00]} 4. O-O {[%clk 0:03:02]}  O-O {[%clk 0:03:01]} 5. d4 {[%clk 0:03:03]}  d5 {[%clk 0:03:01]} 6. c4 {[%clk 0:03:03]}  c6 {[%clk 0:03:02]} 7. Qb3 {[%clk 0:03:02]}  dxc4 {[%clk 0:03:00]} 8. Qxc4 {[%clk 0:03:02]}  Nbd7 {[%clk 0:02:59]} 9. Nc3 {[%clk 0:03:02]}  Nb6 {[%clk 0:03:00]} 10. Qd3 {[%clk 0:03:02]}  Nbd5 {[%clk 0:02:57]} 11. e4 {[%clk 0:02:59]}  Nxc3 {[%clk 0:02:56]} 12. bxc3 {[%clk 0:02:59]}  Bg4 {[%clk 0:02:51]} 13. h3 {[%clk 0:02:55]}  Bxf3 {[%clk 0:02:47]} 14. Qxf3 {[%clk 0:02:56]}  e5 {[%clk 0:02:44]} 15. Rd1 {[%clk 0:02:47]}  Qa5 {[%clk 0:02:40]} 16. dxe5 {[%clk 0:02:44]}  Qxe5 {[%clk 0:02:40]} 17. Bf4 {[%clk 0:02:44]}  Qa5 {[%clk 0:02:40]} 18. Rab1 {[%clk 0:02:39]}  b5 {[%clk 0:01:53]} 19. Be5 {[%clk 0:02:34]}  Nh5 {[%clk 0:01:42]} 20. Bxg7 {[%clk 0:02:33]}  Nxg7 {[%clk 0:01:43]} 21. e5 {[%clk 0:02:26]}  Rac8 {[%clk 0:01:42]} 22. Qf6 {[%clk 0:02:20]}  Qxa2 {[%clk 0:01:29]} 23. Bxc6 {[%clk 0:02:13]}  Qc4 {[%clk 0:01:20]} 24. Bxb5 {[%clk 0:02:11]}  Qxc3 {[%clk 0:01:21]} 25. Bd7 {[%clk 0:02:03]}  Rc5 {[%clk 0:01:13]} 26. Re1 {[%clk 0:01:50]}  Nh5 {[%clk 0:00:58]} 27. Qe7 {[%clk 0:01:48]}  Nxg3 {[%clk 0:00:56]} 28. Re3 {[%clk 0:00:59]}  Qc2 {[%clk 0:00:43]} 29. Rbe1 {[%clk 0:00:59]}  Nh5 {[%clk 0:00:20]} 30. e6 {[%clk 0:00:56]}  Rf5 {[%clk 0:00:12]} 31. R3e2 {[%clk 0:00:50]}  Qc3 {[%clk 0:00:06]} 32. exf7+ {[%clk 0:00:48]}  R5xf7 {[%clk 0:00:07]} 33. Be6 {[%clk 0:00:46]}  Nf4 {[%clk 0:00:08]} 34. Bxf7+ {[%clk 0:00:43]}  Rxf7 {[%clk 0:00:09]} 35. Qd8+ {[%clk 0:00:37]}  Kg7 {[%clk 0:00:08]} 36. Re3 {[%clk 0:00:32]}  Qc6 {[%clk 0:00:04]} 37. Qd4+ {[%clk 0:00:30]}  Kh6 {[%clk 0:00:05]} 38. Rg3 {[%clk 0:00:24]}  Rf5 {[%clk 0:00:03]} 39. Qe3 {[%clk 0:00:19]}  Qc2 {[%clk 0:00:03]} 40. Kh2 {[%clk 0:00:17]}  Kg7 {[%clk 0:00:03]} 41. Qe7+ {[%clk 0:00:16]}  Rf7 {[%clk 0:00:03]} 42. Qe5+ {[%clk 0:00:16]}  Kg8 {[%clk 0:00:04]} 43. Rf3 {[%clk 0:00:15]}  Qc4 {[%clk 0:00:02]} 44. Re4 {[%clk 0:00:15]}  Qd5 {[%clk 0:00:01]} 45. Qe8+ {[%clk 0:00:12]}  Rf8 {[%clk 0:00:01]} 46. Qxf8+ {[%clk 0:00:12]}  Kxf8 {[%clk 0:00:02]} 47. Rfxf4+ {[%clk 0:00:12]}  Kg8 {[%clk 0:00:03]} 48. Rd4 {[%clk 0:00:13]}  Qe5 {[%clk 0:00:03]} 49. Kg2 {[%clk 0:00:12]}  a5 {[%clk 0:00:03]} 50. Rfe4 {[%clk 0:00:12]}  Qg5+ {[%clk 0:00:03]} 51. Rg4 {[%clk 0:00:12]}  Qf5 {[%clk 0:00:03]} 52. Rd8+ {[%clk 0:00:11]}  Kg7 {[%clk 0:00:04]} 53. Rgd4 {[%clk 0:00:09]}  Qe5 {[%clk 0:00:03]} 54. R8d7+ {[%clk 0:00:09]}  Kh6 {[%clk 0:00:03]} 55. R7d5 {[%clk 0:00:09]}  Qe6 {[%clk 0:00:03]} 56. Rxa5 {[%clk 0:00:08]}  Qf6 {[%clk 0:00:03]} 57. Rad5 {[%clk 0:00:08]}  Qf7 {[%clk 0:00:02]} 58. Rd3 {[%clk 0:00:08]}  Qe6 {[%clk 0:00:02]} 59. R5d4 {[%clk 0:00:08]}  Qc6+ {[%clk 0:00:02]} 60. f3 {[%clk 0:00:08]}  Qb6 {[%clk 0:00:03]} 61. Kg3 {[%clk 0:00:08]}  Qc7+ {[%clk 0:00:03]} 62. f4 {[%clk 0:00:07]}  Qc1 {[%clk 0:00:04]} 63. Rd5 {[%clk 0:00:07]}  Qg1+ {[%clk 0:00:04]} 64. Kf3 {[%clk 0:00:07]}  Qf1+ {[%clk 0:00:05]} 65. Ke4 {[%clk 0:00:08]}  Qg2+ {[%clk 0:00:05]} 66. Ke5 {[%clk 0:00:07]}  Qe2+ {[%clk 0:00:04]} 67. Kf6 {[%clk 0:00:07]}  Qe4 {[%clk 0:00:04]} 68. R5d4 {[%clk 0:00:05]}  Qc6+ {[%clk 0:00:04]} 69. Ke5 {[%clk 0:00:05]}  Qc7+ {[%clk 0:00:04]} 70. Ke4 {[%clk 0:00:06]}  Qe7+ {[%clk 0:00:04]} 71. Kf3 {[%clk 0:00:06]}  Qe1 {[%clk 0:00:05]} 72. Kg2 {[%clk 0:00:04]}  Qe2+ {[%clk 0:00:05]} 73. Kg3 {[%clk 0:00:04]}  Qf1 {[%clk 0:00:05]} 74. Rd2 {[%clk 0:00:01]}  Qe1+ {[%clk 0:00:06]} 75. Kf3 {[%clk 0:00:02]}  Qh1+ {[%clk 0:00:06]} 76. Ke3 {[%clk 0:00:02]}  Qxh3+ {[%clk 0:00:06]} 77. Ke4 {[%clk 0:00:02]}  Qf5+ {[%clk 0:00:06]} 78. Ke3 {[%clk 0:00:03]}  Qe6+ {[%clk 0:00:06]} 79. Kf2 {[%clk 0:00:02]}  Qb6 {[%clk 0:00:06]} 80. Kf3 {[%clk 0:00:01]}  Qb7+ {[%clk 0:00:07]} 81. Rd5 {[%clk 0:00:02]}  Qb3+ {[%clk 0:00:06]} 82. Ke4 {[%clk 0:00:03]}  Qc4+ {[%clk 0:00:06]} 83. Ke5 {[%clk 0:00:04]}  Qc3+ {[%clk 0:00:06]} 84. Ke6 {[%clk 0:00:04]}  Qe3+ {[%clk 0:00:06]} 85. Kf7 {[%clk 0:00:04]}  Qxf4+ {[%clk 0:00:06]} 86. Kg8 {[%clk 0:00:04]}  Qb8+ {[%clk 0:00:06]} 87. Rd8 {[%clk 0:00:04]}  Qb3+ {[%clk 0:00:07]} 88. Kh8 {[%clk 0:00:04]}  Qc3+ {[%clk 0:00:06]} 89. R2d4 {[%clk 0:00:04]}  g5 {[%clk 0:00:05]} 90. Kg8 {[%clk 0:00:03]}  Qb3+ {[%clk 0:00:04]} 91. Kf8 {[%clk 0:00:03]}  Qa3+ {[%clk 0:00:04]} 92. R8d6+ {[%clk 0:00:03]}  Kh5 {[%clk 0:00:04]} 93. Kg7 {[%clk 0:00:03]}  Qe3 {[%clk 0:00:04]} 94. Kxh7 {[%clk 0:00:03]}  Qe7+ {[%clk 0:00:04]} 95. Kg8 {[%clk 0:00:03]}  g4 {[%clk 0:00:04]} 96. Rd7 {[%clk 0:00:02]}  Qe6+ {[%clk 0:00:04]} 97. Kf8 {[%clk 0:00:02]}  Qf6+ {[%clk 0:00:04]} 98. Kg8 {[%clk 0:00:03]}  Qe6+ {[%clk 0:00:03]} 99. Kh8 {[%clk 0:00:03]}  g3 {[%clk 0:00:03]} 100. Rh7+ {[%clk 0:00:03]}  Kg5 {[%clk 0:00:04]} 101. Rdd7 {[%clk 0:00:02]}  Qe8+ {[%clk 0:00:03]} 0-1


[Site "https://www.chess.com"]

[Event "Titled Tuesday Blitz August 09 Early 2022"]
[White "Drozdowski, Kacper"]
[Black "Tica, Sven"]
[WhiteFideId "1136720"]
[BlackFideId "14526948"]
[WhiteElo "2485"]
[BlackElo "2350"]
[Result "1-0"]
[Round "02"]
[TimeControl "180+1"]
[Date "2022.08.09"]
[WhiteClock "0:00:32"]
[BlackClock "0:00:18"]

1. e4 {[%clk 0:03:00]}  g6 {[%clk 0:02:59]} 2. d4 {[%clk 0:03:00]}  Bg7 {[%clk 0:02:59]} 3. Nc3 {[%clk 0:03:01]}  a6 {[%clk 0:03:00]} 4. Be3 {[%clk 0:03:01]}  b5 {[%clk 0:03:00]} 5. Qd2 {[%clk 0:03:00]}  Bb7 {[%clk 0:03:00]} 6. f3 {[%clk 0:03:01]}  d6 {[%clk 0:03:00]} 7. a4 {[%clk 0:02:59]}  b4 {[%clk 0:02:56]} 8. Nce2 {[%clk 0:02:59]}  a5 {[%clk 0:02:52]} 9. c3 {[%clk 0:02:58]}  bxc3 {[%clk 0:02:50]} 10. Nxc3 {[%clk 0:02:59]}  Nd7 {[%clk 0:02:49]} 11. Bc4 {[%clk 0:02:53]}  e6 {[%clk 0:02:45]} 12. Nge2 {[%clk 0:02:53]}  h6 {[%clk 0:02:40]} 13. O-O {[%clk 0:02:52]}  Ne7 {[%clk 0:02:40]} 14. Rac1 {[%clk 0:02:49]}  Nb6 {[%clk 0:02:23]} 15. Bb5+ {[%clk 0:02:49]}  c6 {[%clk 0:02:19]} 16. Bd3 {[%clk 0:02:49]}  Ba6 {[%clk 0:02:11]} 17. b3 {[%clk 0:02:49]}  Bxd3 {[%clk 0:02:00]} 18. Qxd3 {[%clk 0:02:49]}  O-O {[%clk 0:02:01]} 19. h4 {[%clk 0:02:40]}  d5 {[%clk 0:01:53]} 20. h5 {[%clk 0:02:37]}  g5 {[%clk 0:01:50]} 21. f4 {[%clk 0:02:24]}  dxe4 {[%clk 0:01:42]} 22. Nxe4 {[%clk 0:02:25]}  Nf5 {[%clk 0:01:31]} 23. fxg5 {[%clk 0:02:20]}  Nxe3 {[%clk 0:01:30]} 24. Qxe3 {[%clk 0:02:20]}  hxg5 {[%clk 0:01:31]} 25. Rxc6 {[%clk 0:02:13]}  Nd5 {[%clk 0:01:15]} 26. Qxg5 {[%clk 0:02:13]}  Qxg5 {[%clk 0:01:15]} 27. Nxg5 {[%clk 0:02:14]}  Rab8 {[%clk 0:01:15]} 28. Rf3 {[%clk 0:02:12]}  Bh6 {[%clk 0:01:09]} 29. Rg3 {[%clk 0:02:07]}  Kh8 {[%clk 0:01:03]} 30. Rc5 {[%clk 0:01:31]}  Bxg5 {[%clk 0:00:42]} 31. Rxg5 {[%clk 0:01:32]}  Rxb3 {[%clk 0:00:42]} 32. Rxa5 {[%clk 0:01:32]}  Rb2 {[%clk 0:00:43]} 33. Ng3 {[%clk 0:01:24]}  Nf4 {[%clk 0:00:42]} 34. Ne4 {[%clk 0:01:20]}  Ne2+ {[%clk 0:00:38]} 35. Kh1 {[%clk 0:01:06]}  Rb4 {[%clk 0:00:35]} 36. Ng3 {[%clk 0:00:44]}  Nxd4 {[%clk 0:00:29]} 37. Ra7 {[%clk 0:00:40]}  Nc6 {[%clk 0:00:24]} 38. Rc7 {[%clk 0:00:39]}  Nd4 {[%clk 0:00:19]} 39. a5 {[%clk 0:00:39]}  Kh7 {[%clk 0:00:18]} 40. a6 {[%clk 0:00:39]}  Kh6 {[%clk 0:00:19]} 41. Rg4 {[%clk 0:00:37]}  Rb1+ {[%clk 0:00:18]} 42. Kh2 {[%clk 0:00:37]}  Nf5 {[%clk 0:00:18]} 43. Nxf5+ {[%clk 0:00:35]}  exf5 {[%clk 0:00:19]} 44. Ra4 {[%clk 0:00:35]}  Rb2 {[%clk 0:00:19]} 45. a7 {[%clk 0:00:33]}  Rg8 {[%clk 0:00:18]} 46. a8=Q {[%clk 0:00:32]} 1-0


[Site "https://www.chess.com"]

[Event "Titled Tuesday Blitz August 09 Early 2022"]
[White "Drygalov, Sergey"]
[Black "Barp, Alberto"]
[WhiteFideId "24171743"]
[BlackFideId "872555"]
[WhiteElo "2523"]
[BlackElo "2229"]
[Result "1-0"]
[Round "02"]
[TimeControl "180+1"]
[Date "2022.08.09"]
[WhiteClock "0:00:28"]
[BlackClock "0:00:04"]

1. d4 {[%clk 0:03:00]}  d5 {[%clk 0:02:56]} 2. c4 {[%clk 0:03:00]}  e6 {[%clk 0:02:55]} 3. Nf3 {[%clk 0:03:01]}  c6 {[%clk 0:02:55]} 4. e3 {[%clk 0:03:00]}  Bd6 {[%clk 0:02:53]} 5. Nc3 {[%clk 0:02:57]}  Nf6 {[%clk 0:02:47]} 6. Qc2 {[%clk 0:02:56]}  Nbd7 {[%clk 0:02:47]} 7. Bd3 {[%clk 0:02:55]}  dxc4 {[%clk 0:02:42]} 8. Bxc4 {[%clk 0:02:56]}  b5 {[%clk 0:02:43]} 9. Be2 {[%clk 0:02:56]}  Bb7 {[%clk 0:02:42]} 10. O-O {[%clk 0:02:56]}  O-O {[%clk 0:02:41]} 11. e4 {[%clk 0:02:54]}  e5 {[%clk 0:02:40]} 12. dxe5 {[%clk 0:02:54]}  Nxe5 {[%clk 0:02:39]} 13. Nh4 {[%clk 0:02:54]}  Re8 {[%clk 0:02:24]} 14. f4 {[%clk 0:02:52]}  Bc5+ {[%clk 0:02:18]} 15. Kh1 {[%clk 0:02:52]}  Neg4 {[%clk 0:02:18]} 16. e5 {[%clk 0:02:32]}  Nf2+ {[%clk 0:02:05]} 17. Rxf2 {[%clk 0:02:33]}  Bxf2 {[%clk 0:02:06]} 18. Nf5 {[%clk 0:02:33]}  Bc5 {[%clk 0:01:59]} 19. exf6 {[%clk 0:02:24]}  Qxf6 {[%clk 0:01:58]} 20. Ng3 {[%clk 0:02:22]}  Qh4 {[%clk 0:01:50]} 21. Nce4 {[%clk 0:02:12]}  Bd4 {[%clk 0:01:44]} 22. f5 {[%clk 0:02:11]}  c5 {[%clk 0:01:38]} 23. Bf3 {[%clk 0:01:15]}  h6 {[%clk 0:01:27]} 24. Bd2 {[%clk 0:01:11]}  Rad8 {[%clk 0:01:16]} 25. Rf1 {[%clk 0:01:07]}  c4 {[%clk 0:01:11]} 26. f6 {[%clk 0:00:53]}  Be5 {[%clk 0:01:00]} 27. Be1 {[%clk 0:00:37]}  Bxg3 {[%clk 0:00:36]} 28. Nxg3 {[%clk 0:00:37]}  Bxf3 {[%clk 0:00:33]} 29. gxf3 {[%clk 0:00:38]}  Qxf6 {[%clk 0:00:30]} 30. Bc3 {[%clk 0:00:37]}  Qg6 {[%clk 0:00:29]} 31. Ne4 {[%clk 0:00:35]}  Qh5 {[%clk 0:00:12]} 32. Qg2 {[%clk 0:00:34]}  Qg6 {[%clk 0:00:09]} 33. Qh3 {[%clk 0:00:31]}  Qe6 {[%clk 0:00:09]} 34. Qg3 {[%clk 0:00:30]}  Qg6 {[%clk 0:00:09]} 35. Qf4 {[%clk 0:00:29]}  f5 {[%clk 0:00:06]} 36. Rg1 {[%clk 0:00:28]}  Qxg1+ {[%clk 0:00:03]} 37. Kxg1 {[%clk 0:00:28]}  fxe4 {[%clk 0:00:04]} 38. Qc7 {[%clk 0:00:28]} 1-0


[Site "https://www.chess.com"]

[Event "Titled Tuesday Blitz August 09 Early 2022"]
[White "Dushyant Sharma"]
[Black "parintele_chess"]
[WhiteFideId "25065130"]
[WhiteElo "2133"]
[BlackElo "2215"]
[Result "1-0"]
[Round "02"]
[TimeControl "180+1"]
[Date "2022.08.09"]
[WhiteClock "0:01:17"]
[BlackClock "0:00:01"]

1. e4 {[%clk 0:03:00]}  c6 {[%clk 0:02:59]} 2. d4 {[%clk 0:03:00]}  d5 {[%clk 0:02:59]} 3. exd5 {[%clk 0:03:01]}  cxd5 {[%clk 0:02:59]} 4. Bd3 {[%clk 0:03:02]}  Nc6 {[%clk 0:02:55]} 5. c3 {[%clk 0:03:01]}  Nf6 {[%clk 0:02:55]} 6. Nf3 {[%clk 0:03:01]}  g6 {[%clk 0:02:52]} 7. O-O {[%clk 0:03:01]}  Bg7 {[%clk 0:02:52]} 8. Be3 {[%clk 0:03:01]}  Bf5 {[%clk 0:02:50]} 9. Bxf5 {[%clk 0:03:01]}  gxf5 {[%clk 0:02:50]} 10. Nbd2 {[%clk 0:03:02]}  O-O {[%clk 0:02:49]} 11. Ne5 {[%clk 0:03:02]}  e6 {[%clk 0:02:46]} 12. f4 {[%clk 0:03:01]}  Ne4 {[%clk 0:02:40]} 13. Qh5 {[%clk 0:02:55]}  Nxd2 {[%clk 0:02:11]} 14. Bxd2 {[%clk 0:02:56]}  Nxe5 {[%clk 0:01:54]} 15. fxe5 {[%clk 0:02:55]}  f6 {[%clk 0:01:51]} 16. exf6 {[%clk 0:02:53]}  Qxf6 {[%clk 0:01:49]} 17. Rae1 {[%clk 0:02:53]}  Rae8 {[%clk 0:01:47]} 18. Rf3 {[%clk 0:02:49]}  Qg6 {[%clk 0:01:46]} 19. Qh4 {[%clk 0:02:48]}  Bf6 {[%clk 0:01:18]} 20. Qh3 {[%clk 0:02:46]}  Kh8 {[%clk 0:00:57]} 21. Rg3 {[%clk 0:02:41]}  Qf7 {[%clk 0:00:57]} 22. Bf4 {[%clk 0:02:41]}  Rg8 {[%clk 0:00:54]} 23. Rxg8+ {[%clk 0:02:12]}  Rxg8 {[%clk 0:00:55]} 24. Be5 {[%clk 0:02:13]}  Bxe5 {[%clk 0:00:38]} 25. Rxe5 {[%clk 0:02:13]}  Qg6 {[%clk 0:00:37]} 26. Qf3 {[%clk 0:02:08]}  Kg7 {[%clk 0:00:26]} 27. g3 {[%clk 0:02:05]}  Kf7 {[%clk 0:00:23]} 28. Re1 {[%clk 0:02:02]}  Qg4 {[%clk 0:00:20]} 29. Qe3 {[%clk 0:02:02]}  Re8 {[%clk 0:00:20]} 30. Qe5 {[%clk 0:02:00]}  Qg7 {[%clk 0:00:19]} 31. Qd6 {[%clk 0:01:56]}  Re7 {[%clk 0:00:15]} 32. a4 {[%clk 0:01:40]}  h5 {[%clk 0:00:14]} 33. h4 {[%clk 0:01:36]}  Qg4 {[%clk 0:00:14]} 34. Kg2 {[%clk 0:01:32]}  Qg6 {[%clk 0:00:08]} 35. a5 {[%clk 0:01:31]}  a6 {[%clk 0:00:09]} 36. b3 {[%clk 0:01:30]}  Qh6 {[%clk 0:00:06]} 37. Re2 {[%clk 0:01:28]}  Qc1 {[%clk 0:00:06]} 38. c4 {[%clk 0:01:28]}  dxc4 {[%clk 0:00:04]} 39. d5 {[%clk 0:01:29]}  e5 {[%clk 0:00:02]} 40. Qc5 {[%clk 0:01:19]}  Qd1 {[%clk 0:00:01]} 41. Qxc4 {[%clk 0:01:17]} 1-0


[Site "https://www.chess.com"]

[Event "Titled Tuesday Blitz August 09 Early 2022"]
[White "Eggleston, Thomas A"]
[Black "Blanco Ronquillo, Humberto L."]
[WhiteFideId "412139"]
[BlackFideId "3504239"]
[WhiteElo "2155"]
[BlackElo "2425"]
[Result "1-0"]
[Round "02"]
[TimeControl "180+1"]
[Date "2022.08.09"]
[WhiteClock "0:00:04"]
[BlackClock "0:00:05"]

1. e4 {[%clk 0:03:00]}  c5 {[%clk 0:02:58]} 2. b3 {[%clk 0:03:01]}  d5 {[%clk 0:02:44]} 3. exd5 {[%clk 0:03:00]}  Qxd5 {[%clk 0:02:45]} 4. Nc3 {[%clk 0:03:00]}  Qd8 {[%clk 0:02:38]} 5. Nf3 {[%clk 0:02:59]}  Nc6 {[%clk 0:02:38]} 6. Bb5 {[%clk 0:02:55]}  Bd7 {[%clk 0:02:35]} 7. Bb2 {[%clk 0:02:52]}  Nf6 {[%clk 0:02:35]} 8. Qe2 {[%clk 0:02:51]}  e6 {[%clk 0:02:17]} 9. O-O-O {[%clk 0:02:31]}  Nd4 {[%clk 0:02:17]} 10. Nxd4 {[%clk 0:02:21]}  cxd4 {[%clk 0:02:18]} 11. Ne4 {[%clk 0:02:05]}  Nxe4 {[%clk 0:02:16]} 12. Bxd7+ {[%clk 0:02:04]}  Qxd7 {[%clk 0:02:17]} 13. Qxe4 {[%clk 0:02:04]}  Bc5 {[%clk 0:02:17]} 14. h4 {[%clk 0:01:36]}  O-O {[%clk 0:02:09]} 15. h5 {[%clk 0:01:36]}  h6 {[%clk 0:02:09]} 16. Rh3 {[%clk 0:01:35]}  Rac8 {[%clk 0:02:02]} 17. Kb1 {[%clk 0:01:35]}  Rfd8 {[%clk 0:02:00]} 18. c4 {[%clk 0:01:27]}  dxc3 {[%clk 0:01:18]} 19. Bxc3 {[%clk 0:01:26]}  Bxf2 {[%clk 0:01:17]} 20. Rf1 {[%clk 0:01:12]}  Bd4 {[%clk 0:01:16]} 21. Rd3 {[%clk 0:01:01]}  e5 {[%clk 0:01:14]} 22. Bxd4 {[%clk 0:00:23]}  exd4 {[%clk 0:01:15]} 23. Rg3 {[%clk 0:00:20]}  Re8 {[%clk 0:01:03]} 24. Qf4 {[%clk 0:00:14]}  Qc7 {[%clk 0:00:48]} 25. Qg4 {[%clk 0:00:11]}  f6 {[%clk 0:00:38]} 26. Qg6 {[%clk 0:00:09]}  Re2 {[%clk 0:00:19]} 27. Ka1 {[%clk 0:00:06]}  Rxd2 {[%clk 0:00:17]} 28. Qe4 {[%clk 0:00:03]}  Qc1+ {[%clk 0:00:07]} 29. Rxc1 {[%clk 0:00:02]}  Rxc1+ {[%clk 0:00:08]} 30. Qb1 {[%clk 0:00:02]}  Rxb1+ {[%clk 0:00:09]} 31. Kxb1 {[%clk 0:00:03]}  Kf7 {[%clk 0:00:09]} 32. a3 {[%clk 0:00:03]}  Re2 {[%clk 0:00:06]} 33. Kc1 {[%clk 0:00:03]}  Re3 {[%clk 0:00:06]} 34. Rg4 {[%clk 0:00:03]}  Rxb3 {[%clk 0:00:06]} 35. Rxd4 {[%clk 0:00:03]}  Ke6 {[%clk 0:00:05]} 36. Re4+ {[%clk 0:00:03]}  Kf5 {[%clk 0:00:05]} 37. Re7 {[%clk 0:00:03]}  a5 {[%clk 0:00:05]} 38. Rxg7 {[%clk 0:00:03]}  b5 {[%clk 0:00:06]} 39. Rg6 {[%clk 0:00:03]}  Rxa3 {[%clk 0:00:06]} 40. Rxh6 {[%clk 0:00:03]}  Ra2 {[%clk 0:00:06]} 41. Rg6 {[%clk 0:00:03]}  b4 {[%clk 0:00:06]} 42. Rg8 {[%clk 0:00:03]}  b3 {[%clk 0:00:04]} 43. h6 {[%clk 0:00:03]}  a4 {[%clk 0:00:05]} 44. h7 {[%clk 0:00:04]}  Ra1+ {[%clk 0:00:04]} 45. Kb2 {[%clk 0:00:04]}  Rh1 {[%clk 0:00:05]} 46. h8=Q {[%clk 0:00:03]}  Rxh8 {[%clk 0:00:05]} 47. Rxh8 {[%clk 0:00:04]}  Ke4 {[%clk 0:00:05]} 48. Ka3 {[%clk 0:00:04]} 1-0


[Site "https://www.chess.com"]

[Event "Titled Tuesday Blitz August 09 Early 2022"]
[White "Ekdyshman, Mikhail"]
[Black "Chigaev, Maksim"]
[WhiteFideId "4149416"]
[BlackFideId "4108116"]
[WhiteElo "2146"]
[BlackElo "2487"]
[Result "0-1"]
[Round "02"]
[TimeControl "180+1"]
[Date "2022.08.09"]
[WhiteClock "0:00:09"]
[BlackClock "0:00:12"]

1. e4 {[%clk 0:02:59]}  g6 {[%clk 0:02:59]} 2. d4 {[%clk 0:02:57]}  Bg7 {[%clk 0:02:59]} 3. Nc3 {[%clk 0:02:57]}  d6 {[%clk 0:03:00]} 4. Bc4 {[%clk 0:02:53]}  Nf6 {[%clk 0:02:59]} 5. f3 {[%clk 0:02:49]}  c6 {[%clk 0:02:55]} 6. a4 {[%clk 0:02:45]}  O-O {[%clk 0:02:54]} 7. Be3 {[%clk 0:02:46]}  d5 {[%clk 0:02:51]} 8. Bd3 {[%clk 0:02:43]}  dxe4 {[%clk 0:02:48]} 9. Nxe4 {[%clk 0:02:43]}  Nd5 {[%clk 0:02:43]} 10. Bd2 {[%clk 0:02:40]}  Bxd4 {[%clk 0:02:42]} 11. Ne2 {[%clk 0:02:33]}  Bxb2 {[%clk 0:02:41]} 12. h4 {[%clk 0:02:34]}  Bf5 {[%clk 0:02:31]} 13. h5 {[%clk 0:02:32]}  Bxe4 {[%clk 0:02:32]} 14. fxe4 {[%clk 0:02:27]}  Nf6 {[%clk 0:02:32]} 15. hxg6 {[%clk 0:02:26]}  hxg6 {[%clk 0:02:26]} 16. Nf4 {[%clk 0:02:18]}  Qd4 {[%clk 0:01:58]} 17. Rb1 {[%clk 0:02:13]}  Nxe4 {[%clk 0:01:56]} 18. Qf3 {[%clk 0:02:08]}  Nxd2 {[%clk 0:01:53]} 19. Kxd2 {[%clk 0:01:50]}  Bc3+ {[%clk 0:01:49]} 20. Kd1 {[%clk 0:01:49]}  Nd7 {[%clk 0:00:52]} 21. Qh3 {[%clk 0:01:27]}  Qh8 {[%clk 0:00:52]} 22. Rxb7 {[%clk 0:01:03]}  Qxh3 {[%clk 0:00:49]} 23. Rxh3 {[%clk 0:01:03]}  Nc5 {[%clk 0:00:47]} 24. Rxe7 {[%clk 0:00:56]}  Rfe8 {[%clk 0:00:42]} 25. Nxg6 {[%clk 0:00:45]}  Rab8 {[%clk 0:00:15]} 26. Bc4 {[%clk 0:00:38]}  Rb1+ {[%clk 0:00:14]} 27. Ke2 {[%clk 0:00:37]}  Re1+ {[%clk 0:00:14]} 28. Kf2 {[%clk 0:00:37]}  R1xe7 {[%clk 0:00:13]} 29. Nxe7+ {[%clk 0:00:28]}  Rxe7 {[%clk 0:00:14]} 30. Rg3+ {[%clk 0:00:18]}  Kf8 {[%clk 0:00:14]} 31. Rg4 {[%clk 0:00:18]}  Re4 {[%clk 0:00:11]} 32. Rxe4 {[%clk 0:00:15]}  Nxe4+ {[%clk 0:00:12]} 33. Ke3 {[%clk 0:00:16]}  Nd6 {[%clk 0:00:13]} 34. Bd3 {[%clk 0:00:16]}  a5 {[%clk 0:00:13]} 35. g4 {[%clk 0:00:15]}  Ke7 {[%clk 0:00:12]} 36. Be2 {[%clk 0:00:16]}  c5 {[%clk 0:00:11]} 37. Bf3 {[%clk 0:00:16]}  Kf6 {[%clk 0:00:11]} 38. Kf4 {[%clk 0:00:14]}  Be5+ {[%clk 0:00:11]} 39. Ke3 {[%clk 0:00:15]}  Kg5 {[%clk 0:00:11]} 40. Be2 {[%clk 0:00:15]}  f6 {[%clk 0:00:12]} 41. Kf3 {[%clk 0:00:12]}  Bd4 {[%clk 0:00:11]} 42. Bd3 {[%clk 0:00:10]}  c4 {[%clk 0:00:11]} 43. Be2 {[%clk 0:00:10]}  c3 {[%clk 0:00:12]} 44. Bd3 {[%clk 0:00:11]}  Bc5 {[%clk 0:00:12]} 45. Bb5 {[%clk 0:00:09]}  Nxb5 {[%clk 0:00:12]} 0-1


[Site "https://www.chess.com"]

[Event "Titled Tuesday Blitz August 09 Early 2022"]
[White "Fajdetic, Hrvoje"]
[Black "Shuvalova, Polina"]
[WhiteFideId "14501945"]
[BlackFideId "24171760"]
[WhiteElo "2172"]
[BlackElo "2330"]
[Result "0-1"]
[Round "02"]
[TimeControl "180+1"]
[Date "2022.08.09"]
[WhiteClock "0:00:01"]
[BlackClock "0:00:09"]

1. b3 {[%clk 0:02:54]}  Nf6 {[%clk 0:02:57]} 2. Bb2 {[%clk 0:02:54]}  g6 {[%clk 0:02:55]} 3. f4 {[%clk 0:02:54]}  Bg7 {[%clk 0:02:54]} 4. Nf3 {[%clk 0:02:54]}  d6 {[%clk 0:02:54]} 5. d3 {[%clk 0:02:54]}  c5 {[%clk 0:02:55]} 6. Nbd2 {[%clk 0:02:54]}  Nc6 {[%clk 0:02:55]} 7. e4 {[%clk 0:02:54]}  O-O {[%clk 0:02:53]} 8. a4 {[%clk 0:02:52]}  d5 {[%clk 0:02:52]} 9. e5 {[%clk 0:02:51]}  Ng4 {[%clk 0:02:52]} 10. Qe2 {[%clk 0:02:49]}  d4 {[%clk 0:02:48]} 11. Nc4 {[%clk 0:02:47]}  a6 {[%clk 0:02:46]} 12. a5 {[%clk 0:02:46]}  Nb4 {[%clk 0:02:45]} 13. h3 {[%clk 0:02:42]}  Ne3 {[%clk 0:02:45]} 14. Nxe3 {[%clk 0:02:42]}  dxe3 {[%clk 0:02:46]} 15. Bc1 {[%clk 0:02:31]}  Nd5 {[%clk 0:02:38]} 16. Bxe3 {[%clk 0:02:25]}  Nxe3 {[%clk 0:02:34]} 17. Qxe3 {[%clk 0:02:26]}  f6 {[%clk 0:02:34]} 18. Be2 {[%clk 0:02:14]}  fxe5 {[%clk 0:02:34]} 19. fxe5 {[%clk 0:02:13]}  Qd5 {[%clk 0:02:26]} 20. O-O {[%clk 0:02:02]}  Bd7 {[%clk 0:02:17]} 21. c4 {[%clk 0:01:52]}  Qc6 {[%clk 0:02:13]} 22. d4 {[%clk 0:01:41]}  cxd4 {[%clk 0:02:12]} 23. Qxd4 {[%clk 0:01:42]}  Rad8 {[%clk 0:02:10]} 24. Qb6 {[%clk 0:01:27]}  Qc8 {[%clk 0:01:45]} 25. Qe3 {[%clk 0:00:48]}  Bc6 {[%clk 0:01:39]} 26. Ng5 {[%clk 0:00:46]}  h6 {[%clk 0:01:28]} 27. Bg4 {[%clk 0:00:42]}  Bd7 {[%clk 0:01:27]} 28. e6 {[%clk 0:00:33]}  Rxf1+ {[%clk 0:01:20]} 29. Rxf1 {[%clk 0:00:32]}  Bc6 {[%clk 0:01:20]} 30. Nf7 {[%clk 0:00:30]}  Bd4 {[%clk 0:01:16]} 31. Nxh6+ {[%clk 0:00:23]}  Kh8 {[%clk 0:00:49]} 32. Rf8+ {[%clk 0:00:10]}  Rxf8 {[%clk 0:00:49]} 33. Qxd4+ {[%clk 0:00:09]}  Rf6 {[%clk 0:00:50]} 34. Nf7+ {[%clk 0:00:07]}  Kg7 {[%clk 0:00:47]} 35. Qe3 {[%clk 0:00:06]}  g5 {[%clk 0:00:29]} 36. Qxg5+ {[%clk 0:00:05]}  Rg6 {[%clk 0:00:27]} 37. Qe5+ {[%clk 0:00:05]}  Rf6 {[%clk 0:00:27]} 38. Qg5+ {[%clk 0:00:05]}  Rg6 {[%clk 0:00:27]} 39. Qe5+ {[%clk 0:00:05]}  Kf8 {[%clk 0:00:19]} 40. Qh8+ {[%clk 0:00:04]}  Rg8 {[%clk 0:00:20]} 41. Qh6+ {[%clk 0:00:04]}  Ke8 {[%clk 0:00:20]} 42. Bh5 {[%clk 0:00:04]}  Qc7 {[%clk 0:00:11]} 43. Ne5+ {[%clk 0:00:03]}  Kd8 {[%clk 0:00:11]} 44. Qe3 {[%clk 0:00:01]}  Kc8 {[%clk 0:00:09]} 0-1


[Site "https://www.chess.com"]